Cogmind - Beta 15 @@@ ROGUE MODE // 2025.05.17 @ 00:33:27 Player: jumpy Result: Destroyed by S-27 Virus with Autogun Performance ------------- Evolutions (3) 1500 Regions Visited (4) 800 Robots Destroyed (34) 170 Value Destroyed (1050) 1050 Prototype IDs (0) 0 Alien Tech Used (0) 0 Bonus (0) 0 TOTAL SCORE: 3520 Bonus ------- None Cogmind --------- Core Integrity 0/700 Matter 2/300 Energy 100/100 System Corruption 1% Temperature Cool (0) Movement Core (50) Location -7/Factory Parts ------- > --- POWER (1) -------- (None) > --- PROPULSION (4) --- (None) > --- UTILITY (6) ------ (None) > --- WEAPON (2) ------- Mini Grenade Launcher > --- INVENTORY (5) ---- Light Ion Engine Medium Laser Medium Laser Assault Cannon Peak State ------------ > --- POWER ------------ Light Deuterium Engine > --- PROPULSION ------- Light Treads Advanced Treads Advanced Treads Medium Treads > --- UTILITY ---------- Large Storage Unit Advanced Visual Processing Unit Improved Terrain Scanner Improved Terrain Scan Processor Recoil Stabilizer Improved Field Recycling Unit > --- WEAPON ----------- Advanced Assault Cannon Advanced Assault Cannon > --- INVENTORY -------- Light Ion Engine Improved Ion Engine Kinecellerator Medium Laser Medium Laser Heavy Assault Rifle Assault Cannon Assault Cannon Mini Grenade Launcher Axe [Rating: 41] Favorites ----------- Power Improved Ion Engine Engine Improved Ion Engine Propulsion Light Treads Treads Light Treads Utility Improved Terrain Scanner Device Improved Terrain Scanner Storage Large Storage Unit Processor Improved Terrain Scan Processor Protection Medium Armor Plating Weapon Advanced Assault Cannon Energy Gun EM Pulse Gun Ballistic Gun Heavy Assault Rifle Ballistic Cannon Advanced Assault Cannon Launcher Mini Grenade Launcher Build | -11 -10 -9 -8 -7 ------- Run | Yrd Mat Mat Mat Fac Slots Evolved 6 | . . 2 2 2 Power . | . . . . . Propulsion 2 | . . . 1 1 Utility 4 | . . 2 1 1 Weapon . | . . . . . Parts Attached 40 | 8 4 8 11 9 Power 5 | 1 . 1 1 2 Engine 5 | 1 . 1 1 2 Core . | . . . . . Reactor . | . . . . . Propulsion 7 | 2 . . 3 2 Treads 7 | 2 . . 3 2 Leg . | . . . . . Wheel . | . . . . . Hover . | . . . . . Flight . | . . . . . Utility 12 | 2 1 3 3 3 Device 6 | 1 1 2 . 2 Storage 2 | 1 . 1 . . Processor 3 | . . . 2 1 Hackware . | . . . . . Protection 1 | . . . 1 . Artifact . | . . . . . Weapon 16 | 3 3 4 4 2 Energy Gun 4 | 3 . . . 1 Energy Cannon . | . . . . . Ballistic Gun 5 | . 3 2 . . Ballistic Cannon 6 | . . 2 4 . Launcher 1 | . . . . 1 Special Weapon . | . . . . . Impact Weapon . | . . . . . Slashing Weapon . | . . . . . Piercing Weapon . | . . . . . Special Melee Weapon . | . . . . . Unidentified Prototypes . | . . . . . Parts Lost 11 | . . . 2 9 Power 2 | . . . . 2 Propulsion 6 | . . . 1 5 Utility 3 | . . . 1 2 Weapon . | . . . . . Highest Loss Streak 5 | . . . 2 5 To Critical Strikes 1 | . . . . 1 Average Backups 9 | 3 7 6 12 9 Power 1 | . 1 1 1 2 Propulsion 1 | 1 2 2 1 . Utility 1 | . 2 . 2 . Weapon 4 | . 1 2 7 6 Tool/Special . | . . . . . Unused Backups 9 | . . 1 3 5 Power 1 | . . . . 1 Propulsion 2 | . . . 2 . Utility 1 | . . . . 1 Weapon 5 | . . 1 1 3 Tool/Special . | . . . . . Average Slot Usage (%) 95 | . 100 97 96 91 Engine 9 | . 14 11 9 6 Treads 25 | . 28 22 25 26 Device 18 | . 14 30 17 16 Storage 9 | . 14 11 9 6 Processor 10 | . . . 16 16 Energy Gun 1 | . 5 . . 1 Ballistic Gun 7 | . 22 16 . . Ballistic Cannon 10 | . . 5 18 12 Peak Build Rating 41 | 7 10 17 30 41 Average Rating 22 | 5 9 14 25 35 On Entrance 12 | . 7 10 17 29 Naked Turns 38 | . . . . 38 Heaviest Build 51 | 14 17 40 47 51 Greatest Support 92 | 40 40 40 62 92 Greatest Overweight (x) 2 | . . . . 2 Average Overweight (x) . | . . . . . Largest Inventory Capacity 15 | 8 8 15 15 15 Average Capacity 12 | 7 8 10 15 14 Most Carried 15 | 6 8 11 15 11 Average Carried 9 | 3 7 6 12 9 Final Capacity 15 | 8 8 15 15 5 Final Carried 11 | 6 7 10 11 4 Class Distribution -------------------- 39% | Mutant 35% | Skirmisher 18% | Scavenger-Skirmisher 6% | Scavenger-Mutant Dominant Class ---------------- Mutant | -10/Materials Mutant | -9/Materials Scavenger-Skirmisher | -8/Materials Skirmisher | -7/Factory Resources | -11 -10 -9 -8 -7 ----------- Run | Yrd Mat Mat Mat Fac Matter Collected 981 | 240 212 54 255 220 Remotely . | . . . . . Salvage Created 1065 | 49 264 71 485 196 Parts 64 | 4 15 7 23 15 Haulers Intercepted 3 | . . . 3 . Recyclers Shooed . | . . . . . Parts Field Recycled 1 | . . . . 1 Retrieved Matter 5 | . . . . 5 Parts Self-Destructed . | . . . . . Prevented . | . . . . . Kills | -11 -10 -9 -8 -7 ------- Run | Yrd Mat Mat Mat Fac Combat Hostiles Destroyed 24 | . 6 2 8 8 Guns 13 | . 6 2 . 5 Cannons 9 | . . . 8 1 AOE 2 | . . . . 2 Classes Destroyed 11 | 1 2 2 5 1 Worker 1 | . . . . 1 Builder 1 | . 1 . . . Tunneler 3 | 2 . . . 1 Hauler 3 | . . . 3 . Recycler 1 | . . . 1 . Watcher 1 | . . . 1 . Swarmer 7 | . . 1 . 6 Grunt 8 | . 6 . 2 . Duelist 1 | . . . 1 . Sentry 5 | . . 1 4 . Hunter 3 | . . . 1 2 Best Kill Streak 4 | 2 4 1 4 4 Combat Bots Only 4 | . 4 1 4 4 Max Kills in Single Turn 3 | 1 1 1 1 3 Gunslinging . | . . . . . Exploded 2 | . . . . 2 Melee . | . . . . . Uniques/NPCs Destroyed . | . . . . . Combat | -11 -10 -9 -8 -7 -------- Run | Yrd Mat Mat Mat Fac Hostile Shots Fired 229 | . 28 11 59 131 Missed 59 | . 4 6 12 37 Hits 170 | . 24 5 47 94 Melee 4 | . . . 4 . Projectile 166 | . 24 5 43 94 Critical Strikes 5 | . . . 1 4 Damage Taken 2877 | . 392 69 815 1601 Core 803 | . 22 14 55 712 Absorbed by Shields . | . . . . . Core Remaining (%) 94 | 100 91 96 90 . Volleys Fired 107 | 8 22 7 29 41 Largest 2 | 1 2 2 2 2 Hottest 80 | 40 46 46 80 80 Shots Fired 179 | 8 44 14 58 55 Gun 91 | 8 44 14 . 25 Cannon 86 | . . . 58 28 Launcher 2 | . . . . 2 Special . | . . . . . Kinetic 144 | . 44 14 58 28 Thermal 33 | 8 . . . 25 Explosive 2 | . . . . 2 Electromagnetic . | . . . . . Robot Hit Streak 11 | 1 9 11 8 9 Robot Miss Streak 4 | 2 3 1 3 4 Penetration Max . | . . . . . Secondary Targets . | . . . . . Shots Hit Robots 115 | 4 30 11 34 36 Core Hits 55 | 3 14 3 15 20 Critical Kills . | . . . . . Critical Parts Destroyed 1 | . 1 . . . Critical Strikes 7 | . 1 . 3 3 Burn 2 | . . . . 2 Destroy 1 | . 1 . . . Blast 4 | . . . 3 1 Melee Attacks . | . . . . . Impact . | . . . . . Slashing . | . . . . . Piercing . | . . . . . Sneak Attacks . | . . . . . Combat Hostiles . | . . . . . Follow-up Attacks . | . . . . . Damage Inflicted 2465 | 44 516 163 876 866 Guns 884 | 44 450 163 . 227 Cannons 1400 | . . . 870 530 Explosions 166 | . 66 . . 100 Melee . | . . . . . Ramming 15 | . . . 6 9 Kinetic 2013 | . 450 163 870 530 Thermal 271 | 44 . . . 227 Explosive 166 | . 66 . . 100 Electromagnetic . | . . . . . Impact . | . . . . . Slashing . | . . . . . Piercing . | . . . . . Highest Corruption 1 | . . . . 1 Average Corruption 1 | . . . . 1 Corruption Purged . | . . . . . Corruption Blocked . | . . . . . Effects 1 | . . . . 1 Matter Fused 1 | . . . . 1 Overload Shots . | . . . . . Overflow Damage 48 | . . . 23 25 Projectiles 48 | . . . 23 25 Explosions . | . . . . . Melee . | . . . . . Knockbacks 14 | . . . 6 8 Impact . | . . . . . Kinetic 13 | . . . 5 8 Secondary 1 | . . . 1 . Self-Inflicted Damage 72 | . 72 . . . Shots 1 | . 1 . . . Rammed 2 | . . . 1 1 Targets Rammed 2 | . . . 1 1 Kicked . | . . . . . Crushed . | . . . . . Highest Temperature 195 | . 4 1 195 13 Average Temperature 48 | . 2 1 69 9 Received Heat Transfer 627 | . 177 18 216 216 Siege Activations . | . . . . . Martial Activations . | . . . . . Shielding Activations . | . . . . . Robots Disrupted . | . . . . . Combat Hostiles . | . . . . . Robots Corrupted . | . . . . . Combat Hostiles . | . . . . . Parts Fried . | . . . . . Impact Corruptions . | . . . . . Robots Melted . | . . . . . Combat Hostiles . | . . . . . Parts Melted 3 | . . . . 3 Heat Transferred 914 | 100 . . . 814 Parts Sabotaged . | . . . . . Parts Stolen . | . . . . . Parts Stripped . | . . . . . Power Chain Reactions . | . . . . . Alert | -11 -10 -9 -8 -7 ------- Run | Yrd Mat Mat Mat Fac Maximum Alert Level . | . . . . . Low Security (%) 100 | 100 100 100 100 100 Level 1 . | . . . . . Level 2 . | . . . . . Level 3 . | . . . . . Level 4 . | . . . . . Level 5 . | . . . . . High Security . | . . . . . Max Security . | . . . . . Peak Influence 184 | 5 183 59 80 184 Initial 59 | . . 59 . 23 Average 25 | . 65 16 24 12 Influence Increases 956 | 10 253 50 268 375 Destroy 0b10 Robot/C 480 | . 120 40 160 160 Destroy 0b10 Robot/NC 50 | 10 5 . 25 10 Destroy Leader 138 | . 30 10 68 30 Disable Machine 60 | . 30 . . 30 Destroy Structure 48 | . 23 . 15 10 Lose Combat Pursuer 180 | . 45 . . 135 Influence Decreases 772 | 10 110 193 217 242 Entered New Map 112 | . . 84 . 28 Time Decay 588 | 10 110 109 197 162 Lost Part 72 | . . . 20 52 Squads Dispatched 7 | . . . 1 6 Investigation . | . . . . . Extermination 1 | . . . . 1 Reinforcement 6 | . . . 1 5 Assault . | . . . . . Garrison . | . . . . . Intercept . | . . . . . Searches Triggered . | . . . . . Construction Impeded 1 | . . . . 1 Haulers Reinforced . | . . . . . Active Scanning Responses . | . . . . . Cargo Convoy Interrupts . | . . . . . Stealth | -11 -10 -9 -8 -7 --------- Run | Yrd Mat Mat Mat Fac Distress Signals 4 | . 1 1 2 . Communications Jammed . | . . . . . Distress Signals . | . . . . . Times Spotted 52 | . 11 3 17 21 Peak Tracking Total 6 | . 4 2 5 6 Tactical Retreats 5 | . 2 . . 3 Traps | -11 -10 -9 -8 -7 ------- Run | Yrd Mat Mat Mat Fac Traps Triggered 2 | . . . 1 1 Indirectly . | . . . . . Trap Hack Attempts . | . . . . . Triggered . | . . . . . Disarmed . | . . . . . Reprogrammed . | . . . . . Reused . | . . . . . Traps Extracted . | . . . . . Installed . | . . . . . Triggered . | . . . . . Machines | -11 -10 -9 -8 -7 ---------- Run | Yrd Mat Mat Mat Fac Machines Disabled 4 | . 2 . . 2 Max in Single Turn 2 | . 2 . . 2 Machines Repaired . | . . . . . Machines Dismantled . | . . . . . Machines Sabotaged . | . . . . . Overloaded Fab Kills . | . . . . . Hacking | -11 -10 -9 -8 -7 --------- Run | Yrd Mat Mat Mat Fac Machines Accessed . | . . . . . Terminals . | . . . . . Fabricators . | . . . . . Repair Stations . | . . . . . Recycling Units . | . . . . . Scanalyzers . | . . . . . Garrison Access . | . . . . . Total Hacks . | . . . . . Successful . | . . . . . Failed . | . . . . . Catastrophic . | . . . . . Database Lockouts . | . . . . . Manual . | . . . . . Terminals . | . . . . . Fabricators . | . . . . . Repair Stations . | . . . . . Recycling Units . | . . . . . Scanalyzers . | . . . . . Garrison Access . | . . . . . Terminal Hacks . | . . . . . Fabricator Hacks . | . . . . . Repair Station Hacks . | . . . . . Recycling Unit Hacks . | . . . . . Scanalyzer . | . . . . . Garrison Access Hacks . | . . . . . Unauthorized Hacks . | . . . . . Terminals . | . . . . . Fabricators . | . . . . . Repair Stations . | . . . . . Recycling Units . | . . . . . Scanalyzers . | . . . . . Garrison Access . | . . . . . Data Cores Recovered . | . . . . . Used . | . . . . . Hacking Detections . | . . . . . Full Trace Events . | . . . . . Feedback Events . | . . . . . Feedback Blocked . | . . . . . Robot Schematics Acquired . | . . . . . Robots Built . | . . . . . Authchips . | . . . . . Time . | . . . . . Total Robot Build Rating . | . . . . . Part Schematics Acquired . | . . . . . Parts Built . | . . . . . Authchips . | . . . . . Time . | . . . . . Total Part Build Rating . | . . . . . Parts Repaired . | . . . . . Time . | . . . . . Parts Recycled . | . . . . . Recycled Matter . | . . . . . Retrieved Matter . | . . . . . Retrieved Components . | . . . . . Parts Scanalyzed . | . . . . . Part Schematics Acquired . | . . . . . Parts Damaged . | . . . . . Bothacking | -11 -10 -9 -8 -7 ------------ Run | Yrd Mat Mat Mat Fac Used RIF Installer . | . . . . . Robots Hacked . | . . . . . Non-combat . | . . . . . Combat . | . . . . . Robot Hacks Applied . | . . . . . Relay Couplers Released . | . . . . . Fabnet Peak Effective % . | . . . . . Robots Rewired . | . . . . . Allies Hacked . | . . . . . Hacks Repelled . | . . . . . Allies | -11 -10 -9 -8 -7 -------- Run | Yrd Mat Mat Mat Fac Total Allies . | . . . . . Largest Group . | . . . . . Highest-Rated Group . | . . . . . Highest-Rated Ally . | . . . . . Total Orders . | . . . . . Ally Attacks . | . . . . . Total Damage . | . . . . . Kills . | . . . . . Allies Corrupted . | . . . . . Allies Melted . | . . . . . Intel | -11 -10 -9 -8 -7 ------- Run | Yrd Mat Mat Mat Fac Active Infowar (turns) 2150 | 60 398 368 666 658 Optics 1296 | . . . 638 658 Terrain 1635 | . . 331 664 640 Structural 423 | . . 332 91 . Seismic 1333 | 60 398 368 507 . Robot Analysis Total . | . . . . . Derelict Logs Recovered . | . . . . . Drone Launches . | . . . . . Drone Recoveries . | . . . . . Exploration | -11 -10 -9 -8 -7 ------------- Run | Yrd Mat Mat Mat Fac Turns Passed 2254 | 121 398 368 666 701 Spaces Moved 1187 | 57 182 206 347 395 Core 79 | 3 . . . 76 Treads 1108 | 54 182 206 347 319 Legs . | . . . . . Wheels . | . . . . . Hover . | . . . . . Flight . | . . . . . Fastest Speed 50 | 50 160 160 152 50 Average Speed 150 | 154 160 160 158 133 Slowest Speed 305 | 160 160 160 160 305 Overloaded Moves . | . . . . . Propulsion Burnouts . | . . . . . Robots Hopped . | . . . . . Potential Cave-ins . | . . . . . Cave-ins Triggered . | . . . . . Exploration Rate (%) 23 | 4 37 27 32 16 Regions Visited 4 Branch Regions . Pre-discovered Areas . | . . . . . Known Exits Taken . | . . . . . Unknown Exits Taken 4 | 1 1 1 1 . Scrap Searched . | . . . . . Spaces Dug . | . . . . . Terrain Destroyed 46 | . 19 . 16 11 Melee . | . . . . . Projectile 20 | . . . 16 4 AOE 26 | . 19 . . 7 Terrain Rammed . | . . . . . Walls Destroyed . | . . . . . Machines Disabled . | . . . . . Actions | -11 -10 -9 -8 -7 --------- Run | Yrd Mat Mat Mat Fac Total 1465 | 78 244 230 405 508 Wait 85 | . 30 . . 55 Move 1183 | 56 181 205 346 395 Hop . | . . . . . Pick Up 25 | 6 4 6 7 2 Fast Attach 13 | 7 . . 3 3 Attach 9 | . . 2 3 4 Detach . | . . . . . Swap 23 | 1 4 6 7 5 Drop 18 | . 3 4 9 2 Fire 107 | 8 22 7 29 41 Melee . | . . . . . Ram . | . . . . . Kick . | . . . . . Crush 2 | . . . 1 1 Escape Stasis . | . . . . . Rewire . | . . . . . Trap . | . . . . . Miscellaneous . | . . . . . Route ------- -11/Scrapyard -10/Materials (discovered 3 exits: *Mat / [*Min] / [*Sub]) -9/Materials (discovered 2 exits: [*Mat] / [*Min]) -8/Materials -7/Factory History --------- Turn | Location | Event 36 | -11/Scrapyard | Discovered new exit (range 16) 122 | -11/Scrapyard | Entered Materials 219 | -10/Materials | Discovered new exit (range 6) 333 | -10/Materials | Build established: Mutant 450 | -10/Materials | Discovered new exit (range 9) 505 | -10/Materials | Discovered new exit (range 10) 520 | -10/Materials | Entered another Materials area 520 | -9/Materials | Evolved 2 slots: Utility x2 742 | -9/Materials | Discovered new exit (range 12) 864 | -9/Materials | Discovered new exit (range 16) 888 | -9/Materials | Entered another Materials area 888 | -8/Materials | Evolved 2 slots: Propulsion x1, Utility x1 1282 | -8/Materials | Build established: Scavenger-Skirmisher 1528 | -8/Materials | Discovered new exit (range 18) 1554 | -8/Materials | Entered Factory 1554 | -7/Factory | Evolved 2 slots: Propulsion x1, Utility x1 1690 | -7/Factory | Build established: Skirmisher 2212 | -7/Factory | Core integrity fell below 50% 2212 | -7/Factory | Released all parts (7) 2228 | -7/Factory | Core integrity fell below 20% 2243 | -7/Factory | Lost 5 parts (1p3n1u) 2255 | -7/Factory | Destroyed by S-27 Virus with Autogun Last Messages --------------- 02205_ Acquired 10 matter. 02209_ Adv. Treads destroyed. 02210_ Lgt. Deuterium Engine destroyed. 02212_ Adv. Treads destroyed. 02212_ Released Adv. Assault Cannon. 02212_ Released Adv. Visual Processing Unit. 02212_ Released Lrg. Storage Unit. 02212_ Released Imp. Terrain Scan Processor. 02212_ Released Adv. Assault Cannon. 02212_ Released Imp. Field Recycling Unit. 02212_ Released Recoil Stabilizer. 02215_ Critical hit (Burn: +37). 02232_ R-06 Scavenger destroyed. 02236_ U-05 Engineer works on Matter Pump. 02248_ ALERT: Cargo convoy en route, clear transfer corridor. 02248_ K-01 Serf cleans the Matter Pump. 02251_ K-01 Serf destroyed. 02251_ S-27 Virus destroyed. 02251_ Matter Pump disabled. 02251_ S-27 Virus destroyed. Map ----- +----------------------------------------------------+ | ?????????????????????????????????????????????????? | | ?????????????????????????????????????????????????? | | +###?????????????????????????????????????????????? | | #?????????????????????????????????????????????? | | #?????????????????????????????????????????????? | | #?????????????????????????????????????????????? | | #?????????????????????????????????????????????? | | #?????????????????????????????????????????????? | | #?????????????????????????????????????????????? | | #?????????????????????????????????????????????? | | #?????????????????????????????????????????????? | | #?????????????????????????????????????????????? | | #?????????????????????????????????????????????? | | +?????????????????????????????????????????????? | | #?????????????????????????????????????????????? | | #?????????????????????????????????????????????? | | ###########+########??????????????????????????? | | +??????????????????????????? | | #####???????????????????????????? | | " #???????????????????????????????? | | T [ " " """ """ #???????????????????????????????? | | " " """ """ #???????????????????????????????? | | """ "" #???????????????????????????????? | | [% #########+########???????????? | | """ """ """ "" %= ^ s ????????? | | """ """ """ "" [ ^ @ s ????????? | | """ """ """ "" k s ????????? | | ????????? | | ? ? ?????????? | | ? F"#?########+##############+####### T#?????????? | | ?"""?????????????????????????????????????????????? | | ?????????????????????????????????????????????????? | | ?????????????????????????????????????????????????? | | ?????????????????????????????????????????????????? | | ?????????????????????????????????????????????????? | | ?????????????????????????????????????????????????? | | ?????????????????????????????????????????????????? | | ?????????????????????????????????????????????????? | | ?????????????????????????????????????????????????? | | ?????????????????????????????????????????????????? | | ?????????????????????????????????????????????????? | | ?????????????????????????????????????????????????? | | ?????????????????????????????????????????????????? | | ?????????????????????????????????????????????????? | | ?????????????????????????????????????????????????? | | ?????????????????????????????????????????????????? | | ?????????????????????????????????????????????????? | | ?????????????????????????????????????????????????? | | ?????????????????????????????????????????????????? | | ?????????????????????????????????????????????????? | +----------------------------------------------------+ Best States ------------- Heat Dissipation 34 Energy Generation 14 Energy Capacity 265 Matter Stores 300 Matter Capacity 300 Sight Range 20 Terrain Scan Range 16 Terrain Scan Density 210 Armor Coverage 225 Evasion (%) 50 Recoil Reduction 8 Item Schematics ----------------- None Robot Schematics ------------------ None Fabricated ------------ Nothing Repaired ---------- Nothing Alien Tech Used ----------------- None Achievements -------------- None Challenges ------------ None Game ------ Seed HypercooledTrackerBlade Manual? 0 Play Time 00:14:31 Cumulative 100.1 hours Start 2025.05.17 @ 00:22:27 End 2025.05.17 @ 00:33:27 Sessions 1 Manual Loads 0 Difficulty Rogue Special Mode None Game No. 257 Rogue 257 Adventurer 0 Explorer 0 Win Type - Total 2 Types 2/0/0/0/0/0/0/0/0/0 Lore% 48 Gallery% 49 Achievement% 41 Wizard Run 0 Options --------- Layout 0 ASCII 0 Keyboard 0 Movement Numpad Keybinds 0 Fullscreen 2 Font 18/Terminus Map View 76x50 Zoom Use 0% Tactical HUD 1 Map Filters NONE Filters NONE Steam 1 RUN: 9e146303-ab4a-4c8b-b167-388a38941729